Cogmind - Beta 16.1 @@@ ROGUE MODE // 2026.06.21 @ 08:17:44 Player: Godsword Result: Self-destructed Performance ------------- Evolutions (4) 2000 Regions Visited (8) 1600 Robots Destroyed (28) 140 Value Destroyed (806) 806 Prototype IDs (0) 0 Alien Tech Used (0) 0 Bonus (-65) -65 TOTAL SCORE: 4481 Bonus ------- Friendly Fire -65 Cogmind --------- Core Integrity 850/850 Matter 290/300 Energy 250/250 System Corruption 0% Temperature Cool (0) Movement Flying (29) Location -6/Factory Parts ------- > --- POWER (1) -------- Ion Engine > --- PROPULSION (4) --- VTOL Module VTOL Module VTOL Module > --- UTILITY (7) ------ Small Storage Unit Enhanced Optical Array Advanced Targeting Computer Hacking Suite Hacking Suite System Shield System Shield > --- WEAPON (3) ------- (None) > --- INVENTORY (8) ---- Angular Momentum Engine Improved Heat Sink Compact Matter Pod (87) Particle Charger Improved Particle Charger Transmission Jammer Assault Cannon Gauss Cannon Peak State ------------ > --- POWER ------------ Angular Momentum Engine > --- PROPULSION ------- VTOL Module VTOL Module VTOL Module VTOL Module > --- UTILITY ---------- Small Storage Unit Improved Terrain Scanner Advanced Terrain Scan Processor Particle Charger Hacking Suite System Shield System Shield > --- WEAPON ----------- Scythe > --- INVENTORY -------- Improved Heat Sink Compact Matter Pod Advanced Targeting Computer Improved Particle Charger Assault Cannon Assault Cannon Assault Cannon Gauss Cannon [Rating: 38] Favorites ----------- Power Ion Engine Engine Ion Engine Propulsion VTOL Module Wheel Compact Wheel Hover Unit Hover Unit Flight Unit VTOL Module Utility Small Storage Unit Device Improved Terrain Scanner Storage Small Storage Unit Processor Visual Processing Unit Hackware System Shield Weapon Rocket Launcher Energy Gun EM Pulse Gun Ballistic Gun Assault Rifle Ballistic Cannon Improved Light Cannon Launcher Rocket Launcher Impact Weapon Flail Slashing Weapon Scythe Build | -11 -10 -10 -10 -8 -7 -7 -7 -6 ------- Run | Yrd Mat Min Sub Mat Fac Low Low Fac Slots Evolved 8 | . . . . 4 2 . . 2 Power . | . . . . . . . . . Propulsion 2 | . . . . 1 1 . . . Utility 5 | . . . . 2 1 . . 2 Weapon 1 | . . . . 1 . . . . Parts Attached 48 | 7 5 2 3 11 10 2 . 8 Power 3 | 1 . . . 1 . . . 1 Engine 3 | 1 . . . 1 . . . 1 Core . | . . . . . . . . . Reactor . | . . . . . . . . . Propulsion 13 | 2 1 . 2 4 4 . . . Treads . | . . . . . . . . . Leg . | . . . . . . . . . Wheel 5 | 2 1 . 2 . . . . . Hover 4 | . . . . 4 . . . . Flight 4 | . . . . . 4 . . . Utility 16 | 2 1 . . 3 4 . . 6 Device 6 | 1 1 . . 1 1 . . 2 Storage 2 | 1 . . . 1 . . . . Processor 4 | . . . . 1 1 . . 2 Hackware 4 | . . . . . 2 . . 2 Protection . | . . . . . . . . . Artifact . | . . . . . . . . . Weapon 16 | 2 3 2 1 3 2 2 . 1 Energy Gun 1 | 1 . . . . . . . . Energy Cannon . | . . . . . . . . . Ballistic Gun 2 | 1 . . . . . 1 . . Ballistic Cannon 6 | . 2 . . 1 1 1 . 1 Launcher 4 | . . 1 1 2 . . . . Special Weapon . | . . . . . . . . . Impact Weapon 2 | . 1 1 . . . . . . Slashing Weapon 1 | . . . . . 1 . . . Piercing Weapon . | . . . . . . . . . Special Melee Weapon . | . . . . . . . . . Unidentified Prototypes . | . . . . . . . . . Parts Lost 4 | . . . 1 1 . . . 2 Power 1 | . . . . 1 . . . . Propulsion 2 | . . . 1 . . . . 1 Utility . | . . . . . . . . . Weapon 1 | . . . . . . . . 1 Highest Loss Streak 2 | . . . 1 1 . . . 2 To Critical Strikes . | . . . . . . . . . Average Backups 7 | 1 7 8 8 6 8 8 8 7 Power . | . . . . . . . . . Propulsion 1 | . 2 3 3 . . . . . Utility 2 | . 1 2 2 1 2 4 4 4 Weapon 3 | . 3 3 3 4 5 4 4 2 Tool/Special . | . . . . . . . . . Unused Backups 10 | . 3 . . . 2 . . 5 Power 2 | . 1 . . . . . . 1 Propulsion 2 | . 2 . . . . . . . Utility 3 | . . . . . . . . 3 Weapon 3 | . . . . . 2 . . 1 Tool/Special . | . . . . . . . . . Average Slot Usage (%) 90 | . 100 100 99 78 77 87 84 84 Engine 10 | . 14 14 14 8 7 7 7 6 Wheel 13 | . 28 28 27 1 . . . . Hover 5 | . . . . 25 19 . . . Flight 7 | . . . . . 4 30 30 26 Device 12 | . 14 14 14 17 19 7 7 2 Storage 10 | . 14 14 14 9 7 7 7 6 Processor 4 | . . . . 7 7 7 7 10 Hackware 5 | . . . . . 2 15 15 23 Ballistic Cannon 3 | . 22 2 . . . . . 3 Launcher 8 | . . 13 25 9 6 . . . Impact Weapon 3 | . 4 12 2 . . . . . Slashing Weapon 1 | . . . . . 1 7 7 3 Peak Build Rating 38 | 7 12 12 13 21 28 32 28 38 Average Rating 17 | 6 11 11 12 15 20 29 28 34 On Entrance 16 | . 7 12 12 13 16 28 28 28 Avg Prop Armor Cover (%) 3 | . . . . . 3 . . . Naked Turns . | . . . . . . . . . Heaviest Build 23 | 15 19 19 23 16 19 16 13 16 Greatest Support 36 | 32 32 32 36 19 19 16 16 16 Greatest Overweight (x) 4 | . . . 1 . 4 . . . Average Overweight (x) . | . . . . . . . . . Largest Inventory Capacity 8 | 8 8 8 8 8 8 8 8 8 Average Capacity 7 | 7 8 8 8 8 8 8 8 8 Most Carried 8 | 4 8 8 8 8 8 8 8 8 Average Carried 7 | 1 7 8 8 6 7 8 8 7 Final Capacity 8 | 8 8 8 8 8 8 8 8 8 Final Carried 8 | 4 8 8 8 8 8 8 8 8 Class Distribution -------------------- 51% | Mutant 27% | Hacker-Sprinter 20% | Scavenger-Scout Dominant Class ---------------- Mutant | -10/Materials Mutant | -10/Mines Mutant | -10/Subcaves Scavenger-Scout | -8/Materials Scavenger-Scout | -7/Factory Hacker-Sprinter | -7/Lower Caves Hacker-Sprinter | -7/Lower Caves Hacker-Sprinter | -6/Factory Resources | -11 -10 -10 -10 -8 -7 -7 -7 -6 ----------- Run | Yrd Mat Min Sub Mat Fac Low Low Fac Matter Collected 1399 | 318 78 24 212 246 130 178 . 213 Remotely . | . . . . . . . . . Salvage Created 764 | 186 195 24 113 199 . 47 . . Parts 49 | 9 16 . 5 15 . 4 . . Haulers Intercepted . | . . . . . . . . . Recyclers Shooed 1 | . 1 . . . . . . . Parts Field Recycled . | . . . . . . . . . Retrieved Matter . | . . . . . . . . . Parts Self-Destructed 10 | . . . 6 . . 4 . . Prevented . | . . . . . . . . . Parts Restored . | . . . . . . . . . Kills | -11 -10 -10 -10 -8 -7 -7 -7 -6 ------- Run | Yrd Mat Min Sub Mat Fac Low Low Fac Combat Hostiles Destroyed 13 | . 4 . 3 5 . 1 . . Melee 1 | . . . . . . 1 . . Cannons 4 | . 4 . . . . . . . AOE 8 | . . . 3 5 . . . . Classes Destroyed 10 | 2 3 . 2 2 . 1 . . Worker 2 | . 2 . . . . . . . Builder 1 | . . . . 1 . . . . Tunneler 5 | 4 . 1 . . . . . . Recycler 2 | 1 1 . . . . . . . Watcher 5 | . 2 . . 3 . . . . Grunt 8 | . 4 . . 4 . . . . Sentry 1 | . . . . 1 . . . . Programmer 1 | . . . . . . 1 . . Subdweller 3 | . . . 3 . . . . . Scientist 1 | . . . 1 . . . . . Best Kill Streak 6 | 4 5 1 2 6 . 1 . . Combat Bots Only 4 | . 2 . 2 4 . 1 . . Max Kills in Single Turn 2 | 1 2 1 2 2 . 1 . . Gunslinging . | . . . . . . . . . Exploded 2 | . . . 2 2 . . . . Melee 1 | . . . . . . 1 . . Uniques/NPCs Destroyed . | . . . . . . . . . Combat | -11 -10 -10 -10 -8 -7 -7 -7 -6 -------- Run | Yrd Mat Min Sub Mat Fac Low Low Fac Hostile Shots Fired 55 | . 20 . 3 12 . 4 1 15 Missed 23 | . 5 . 1 4 . 1 1 11 Hits 32 | . 15 . 2 8 . 3 . 4 Melee 1 | . . . . . . . . 1 Projectile 31 | . 15 . 2 8 . 3 . 3 Critical Strikes 2 | . . . 1 . . . . 1 Damage Taken 666 | . 265 . 90 177 . 45 . 89 Core 134 | . 55 . . 65 . 14 . . Absorbed by Shields . | . . . . . . . . . Core Remaining (%) 91 | 100 . . 78 88 . . 98 . Volleys Fired 57 | 16 21 . 5 10 . . . 5 Largest 3 | 2 2 . 2 3 . . . 2 Hottest 113 | 60 66 . 73 113 . . . 77 Shots Fired 103 | 32 42 . 10 13 . . . 6 Gun 32 | 32 . . . . . . . . Cannon 48 | . 42 . . . . . . 6 Launcher 23 | . . . 10 13 . . . . Special . | . . . . . . . . . Kinetic 72 | 16 42 . 5 3 . . . 6 Thermal . | . . . . . . . . . Explosive 15 | . . . 5 10 . . . . Electromagnetic 16 | 16 . . . . . . . . Robot Hit Streak 6 | 6 6 . 3 5 . . . 3 Robot Miss Streak 6 | 6 4 . 1 2 . . . 1 Penetration Max . | . . . . . . . . . Secondary Targets . | . . . . . . . . . Shots Hit Robots 52 | 17 21 2 2 5 . 1 . 4 Core Hits 38 | 6 10 . 7 14 . 1 . . Critical Kills . | . . . . . . . . . Critical Parts Destroyed 1 | . . 1 . . . . . . Critical Strikes 3 | 1 . 1 . . . . . 1 Blast 1 | . . . . . . . . 1 Corrupt 1 | 1 . . . . . . . . Smash 1 | . . 1 . . . . . . Melee Attacks 10 | . . 2 . . . 1 . 7 Impact 2 | . . 2 . . . . . . Slashing 8 | . . . . . . 1 . 7 Piercing . | . . . . . . . . . Sneak Attacks 2 | . . 2 . . . . . . Combat Hostiles . | . . . . . . . . . Follow-up Attacks . | . . . . . . . . . Damage Inflicted 1949 | 242 561 105 312 596 . 34 . 99 Guns 219 | 219 . . . . . . . . Cannons 487 | . 388 . . . . . . 99 Explosions 1104 | 23 173 . 312 596 . . . . Melee 139 | . . 105 . . . 34 . . Ramming . | . . . . . . . . . Kinetic 733 | 59 388 . 136 51 . . . 99 Thermal 23 | 23 . . . . . . . . Explosive 894 | . 173 . 176 545 . . . . Electromagnetic 160 | 160 . . . . . . . . Impact 105 | . . 105 . . . . . . Slashing 34 | . . . . . . 34 . . Piercing . | . . . . . . . . . Highest Corruption . | . . . . . . . . . Average Corruption . | . . . . . . . . . Corruption Purged . | . . . . . . . . . Corruption Blocked . | . . . . . . . . . Overload Shots . | . . . . . . . . . Overflow Damage 157 | 8 25 68 4 32 . . . 20 Projectiles 45 | . 25 . . . . . . 20 Explosions 44 | 8 . . 4 32 . . . . Melee 68 | . . 68 . . . . . . Knockbacks 6 | . 4 1 . . . . . 1 Impact 1 | . . 1 . . . . . . Kinetic 5 | . 4 . . . . . . 1 Secondary . | . . . . . . . . . Self-Inflicted Damage 153 | . 70 . 34 49 . . . . Shots 3 | . 1 . 1 1 . . . . Rammed . | . . . . . . . . . Targets Rammed . | . . . . . . . . . Kicked . | . . . . . . . . . Crushed . | . . . . . . . . . Highest Temperature 253 | . 131 . 253 54 . . . 2 Average Temperature 60 | . 53 . 169 18 . . . 2 Received Heat Transfer 452 | . 111 . 278 63 . . . . Siege Activations . | . . . . . . . . . Martial Activations . | . . . . . . . . . Shielding Activations . | . . . . . . . . . Robots Disrupted . | . . . . . . . . . Combat Hostiles . | . . . . . . . . . Robots Corrupted . | . . . . . . . . . Combat Hostiles . | . . . . . . . . . Parts Fried 6 | 1 . 5 . . . . . . Impact Corruptions 1 | . . 1 . . . . . . Robots Melted . | . . . . . . . . . Combat Hostiles . | . . . . . . . . . Parts Melted . | . . . . . . . . . Heat Transferred 50 | 50 . . . . . . . . Parts Sabotaged . | . . . . . . . . . Parts Stolen . | . . . . . . . . . Parts Stripped . | . . . . . . . . . Power Chain Reactions 1 | 1 . . . . . . . . Alert | -11 -10 -10 -10 -8 -7 -7 -7 -6 ------- Run | Yrd Mat Min Sub Mat Fac Low Low Fac Maximum Alert Level 1 | . . . . 1 . . . . Low Security (%) 97 | 100 100 100 . 76 100 . . 100 Level 1 2 | . . . . 23 . . . . Level 2 . | . . . . . . . . . Level 3 . | . . . . . . . . . Level 4 . | . . . . . . . . . Level 5 . | . . . . . . . . . High Security . | . . . . . . . . . Max Security . | . . . . . . . . . Peak Influence 358 | 5 164 52 . 358 160 . . 34 Initial 160 | . . 52 . . 160 . . 34 Average 52 | 1 78 11 . 120 99 . . 10 Influence Increases 789 | 25 204 5 . 413 . 90 15 37 Destroy 0b10 Robot/C 200 | . 80 . . 100 . 20 . . Destroy 0b10 Robot/NC 75 | 25 25 5 . 20 . . . . Destroy Leader 70 | . 24 . . 36 . 10 . . Disable Machine 105 | . 60 . . 45 . . . . Destroy Structure 114 | . 15 . . 92 . . . 7 Partial Spotted 30 | . . . . . . . . 30 Lose Combat Pursuer 195 | . . . . 120 . 60 15 . Influence Decreases 789 | 25 70 139 . 60 323 70 10 92 Entered New Map 318 | . . 82 . . 193 12 10 21 Time Decay 445 | 25 70 57 . 50 130 58 . 55 Lost Part 26 | . . . . 10 . . . 16 Squads Dispatched 5 | . . . . 2 . . . 3 Investigation 1 | . . . . 1 . . . . Extermination . | . . . . . . . . . Reinforcement 4 | . . . . 1 . . . 3 Assault . | . . . . . . . . . Garrison . | . . . . . . . . . Intercept . | . . . . . . . . . Searches Triggered . | . . . . . . . . . Construction Impeded . | . . . . . . . . . Haulers Reinforced . | . . . . . . . . . Active Scanning Responses . | . . . . . . . . . Cargo Convoy Interrupts . | . . . . . . . . . Stealth | -11 -10 -10 -10 -8 -7 -7 -7 -6 --------- Run | Yrd Mat Min Sub Mat Fac Low Low Fac Distress Signals 2 | . 1 . . 1 . . . . Communications Jammed . | . . . . . . . . . Distress Signals . | . . . . . . . . . Times Spotted 47 | . 6 . 5 18 . 3 1 14 Peak Tracking Total 12 | . 3 . 3 8 . 5 3 12 Tactical Retreats 4 | . . . . 2 . 1 1 . Traps | -11 -10 -10 -10 -8 -7 -7 -7 -6 ------- Run | Yrd Mat Min Sub Mat Fac Low Low Fac Traps Triggered . | . . . . . . . . . Indirectly . | . . . . . . . . . Trap Hack Attempts . | . . . . . . . . . Triggered . | . . . . . . . . . Disarmed . | . . . . . . . . . Reprogrammed . | . . . . . . . . . Reused . | . . . . . . . . . Traps Extracted . | . . . . . . . . . Installed . | . . . . . . . . . Triggered . | . . . . . . . . . Machines | -11 -10 -10 -10 -8 -7 -7 -7 -6 ---------- Run | Yrd Mat Min Sub Mat Fac Low Low Fac Machines Disabled 7 | . 4 . . 3 . . . . Max in Single Turn 2 | . 1 . . 2 . . . . Machines Repaired . | . . . . . . . . . Machines Dismantled . | . . . . . . . . . Machines Sabotaged . | . . . . . . . . . Overloaded Fab Kills . | . . . . . . . . . Hacking | -11 -10 -10 -10 -8 -7 -7 -7 -6 --------- Run | Yrd Mat Min Sub Mat Fac Low Low Fac Machines Accessed 8 | . 1 . . 1 4 . . 2 Terminals 6 | . 1 . . 1 3 . . 1 Fabricators . | . . . . . . . . . Repair Stations . | . . . . . . . . . Recycling Units 2 | . . . . . 1 . . 1 Scanalyzers . | . . . . . . . . . Garrison Access . | . . . . . . . . . Total Hacks 17 | . 1 . . 2 9 . . 5 Successful 1 | . . . . . . . . 1 Failed 16 | . 1 . . 2 9 . . 4 Catastrophic 4 | . 1 . . . 2 . . 1 Database Lockouts . | . . . . . . . . . Manual 13 | . 1 . . 2 7 . . 3 Terminals 13 | . 1 . . 2 7 . . 3 Fabricators . | . . . . . . . . . Repair Stations . | . . . . . . . . . Recycling Units 4 | . . . . . 2 . . 2 Scanalyzers . | . . . . . . . . . Garrison Access . | . . . . . . . . . Terminal Hacks . | . . . . . . . . . Fabricator Hacks . | . . . . . . . . . Repair Station Hacks . | . . . . . . . . . Recycling Unit Hacks 1 | . . . . . . . . 1 Retrieve Components 1 | . . . . . . . . 1 Scanalyzer . | . . . . . . . . . Garrison Access Hacks . | . . . . . . . . . Unauthorized Hacks . | . . . . . . . . . Terminals . | . . . . . . . . . Fabricators . | . . . . . . . . . Repair Stations . | . . . . . . . . . Recycling Units . | . . . . . . . . . Scanalyzers . | . . . . . . . . . Garrison Access . | . . . . . . . . . Data Cores Recovered . | . . . . . . . . . Used . | . . . . . . . . . Hacking Detections 8 | . 1 . . 1 4 . . 2 Full Trace Events 1 | . . . . 1 . . . . Feedback Events . | . . . . . . . . . Feedback Blocked . | . . . . . . . . . Robot Schematics Acquired . | . . . . . . . . . Robots Built . | . . . . . . . . . Authchips . | . . . . . . . . . Time . | . . . . . . . . . Total Robot Build Rating . | . . . . . . . . . Part Schematics Acquired . | . . . . . . . . . Parts Built . | . . . . . . . . . Authchips . | . . . . . . . . . Time . | . . . . . . . . . Total Part Build Rating . | . . . . . . . . . Part Studies Acquired . | . . . . . . . . . Parts Repaired . | . . . . . . . . . Time . | . . . . . . . . . Parts Recycled . | . . . . . . . . . Recycled Matter . | . . . . . . . . . Retrieved Matter . | . . . . . . . . . Retrieved Components 2 | . . . . . . . . 2 Parts Scanalyzed . | . . . . . . . . . Part Schematics Acquired . | . . . . . . . . . Parts Damaged . | . . . . . . . . . Bothacking | -11 -10 -10 -10 -8 -7 -7 -7 -6 ------------ Run | Yrd Mat Min Sub Mat Fac Low Low Fac Used RIF Installer . | . . . . . . . . . Robots Hacked . | . . . . . . . . . Non-combat . | . . . . . . . . . Combat . | . . . . . . . . . Robot Hacks Applied . | . . . . . . . . . Relay Couplers Released . | . . . . . . . . . Fabnet Peak Effective % . | . . . . . . . . . Robots Rewired . | . . . . . . . . . Allies Hacked . | . . . . . . . . . Hacks Repelled . | . . . . . . . . . Allies | -11 -10 -10 -10 -8 -7 -7 -7 -6 -------- Run | Yrd Mat Min Sub Mat Fac Low Low Fac Total Allies 3 | . . 3 . . . . . . Largest Group 3 | . . 3 3 . . . . . Highest-Rated Group 40 | . . 40 40 . . . . . Highest-Rated Ally 16 | . . 16 16 . . . . . Total Orders 1 | . . 1 . . . . . . AID 1 | . . 1 . . . . . . Ally Attacks 1 | . . . 1 . . . . . Total Damage . | . . . . . . . . . Kills . | . . . . . . . . . Allies Corrupted . | . . . . . . . . . Allies Melted . | . . . . . . . . . Intel | -11 -10 -10 -10 -8 -7 -7 -7 -6 ------- Run | Yrd Mat Min Sub Mat Fac Low Low Fac Active Infowar (turns) 1337 | 68 201 288 228 128 260 91 . 73 Optics 440 | . . . . 119 256 . . 65 Sensors 373 | . . . . 120 253 . . . Terrain 1165 | . 162 288 228 128 260 91 . 8 Seismic 107 | 68 39 . . . . . . . Robot Analysis Total . | . . . . . . . . . Derelict Logs Recovered 1 | . . 1 . . . . . . Drone Launches . | . . . . . . . . . Drone Recoveries . | . . . . . . . . . Exploration | -11 -10 -10 -10 -8 -7 -7 -7 -6 ------------- Run | Yrd Mat Min Sub Mat Fac Low Low Fac Turns Passed 1576 | 113 201 288 228 128 260 148 14 196 Spaces Moved 2260 | 52 117 256 194 156 416 462 54 553 Core 2 | 2 . . . . . . . . Treads . | . . . . . . . . . Legs . | . . . . . . . . . Wheels 617 | 50 117 256 194 . . . . . Hover 501 | . . . . 156 345 . . . Flight 1140 | . . . . . 71 462 54 553 Fastest Speed 26 | 50 100 100 100 52 26 26 26 26 Average Speed 52 | 98 100 100 104 52 48 26 26 26 Slowest Speed 355 | 100 100 100 115 52 355 26 26 26 Overloaded Moves . | . . . . . . . . . Propulsion Burnouts . | . . . . . . . . . Robots Hopped 1 | . . . . . . . . 1 Potential Cave-ins . | . . . . . . . . . Cave-ins Triggered . | . . . . . . . . . Exploration Rate (%) 26 | 4 37 57 18 30 10 57 13 15 Regions Visited 8 Branch Regions 4 Pre-discovered Areas 1 | . . 1 . . . . . . Known Exits Taken . | . . . . . . . . . Unknown Exits Taken 8 | 1 1 1 1 1 1 1 1 . Scrap Searched 5 | . . . . . . 5 . . Spaces Dug 13 | . . . 6 . . . . 7 Terrain Destroyed 237 | 5 15 . 77 133 . . . 7 Melee 7 | . . . . . . . . 7 Projectile 2 | . 2 . . . . . . . AOE 228 | 5 13 . 77 133 . . . . Terrain Rammed . | . . . . . . . . . Walls Destroyed . | . . . . . . . . . Machines Disabled . | . . . . . . . . . Actions | -11 -10 -10 -10 -8 -7 -7 -7 -6 --------- Run | Yrd Mat Min Sub Mat Fac Low Low Fac Total 2526 | 78 161 284 210 193 475 486 53 586 Wait 72 | . . 24 5 . 23 20 . . Move 2250 | 51 116 255 193 155 415 461 53 551 Hop 1 | . . . . . . . . 1 Pick Up 32 | 4 10 . 1 4 10 . . 3 Fast Attach 22 | 7 1 1 2 . 7 1 . 3 Attach 12 | . . . . 9 1 . . 2 Detach 10 | . 1 . . 6 1 . . 2 Swap 23 | . 4 1 1 5 3 2 . 7 Drop 37 | . 8 1 3 4 15 1 . 5 Fire 57 | 16 21 . 5 10 . . . 5 Melee 10 | . . 2 . . . 1 . 7 Ram . | . . . . . . . . . Kick . | . . . . . . . . . Crush . | . . . . . . . . . Escape Stasis . | . . . . . . . . . Rewire . | . . . . . . . . . Trap . | . . . . . . . . . Miscellaneous . | . . . . . . . . . Route ------- -11/Scrapyard -10/Materials -10/Mines -10/Subcaves -8/Materials -7/Factory -7/Lower Caves -7/Lower Caves -6/Factory (discovered 1 exit: [*Fac]) History --------- Turn | Location | Event 31 | -11/Scrapyard | Discovered new exit (range 14) 114 | -11/Scrapyard | Entered Materials 294 | -10/Materials | Discovered new exit (range 11) 315 | -10/Materials | Entered Mines 322 | -10/Mines | Received a Rocket Launcher from a helpful Derelict 350 | -10/Mines | Assisted by bots powering up and referring to "LRC-V3" 352 | -10/Mines | Build established: Mutant 433 | -10/Mines | Learned location of Zion (-7) 595 | -10/Mines | Discovered new exit (range 6) 603 | -10/Mines | Entered Subcaves 603 | -10/Subcaves | Accompanied by 3 allies 604 | -10/Subcaves | Approached by a straggling Scientist 631 | -10/Subcaves | Shifting Twisted Machinery released Sub. Shrapnel Launcher 633 | -10/Subcaves | Shifting Twisted Machinery released Sub. Power Source 674 | -10/Subcaves | Shifting Twisted Machinery released Sub. Shrapnel Launcher 684 | -10/Subcaves | Lost 4 allies 786 | -10/Subcaves | Discovered new exit (range 8) 831 | -10/Subcaves | Entered Materials 831 | -8/Materials | Evolved 4 slots: Propulsion x1, Utility x2, Weapon x1 939 | -8/Materials | Discovered new exit (range 18) 959 | -8/Materials | Entered Factory 959 | -7/Factory | Evolved 2 slots: Propulsion x1, Utility x1 1146 | -7/Factory | Build established: Scavenger-Scout 1201 | -7/Factory | Discovered new exit (range 12) 1219 | -7/Factory | Entered Lower Caves 1366 | -7/Lower Caves | Discovered new exit (range 5) 1367 | -7/Lower Caves | Entered another Lower Caves area 1378 | -7/Lower Caves | Discovered new exit (range 15) 1381 | -7/Lower Caves | Entered Factory 1381 | -6/Factory | Evolved 2 slots: Utility x2 1464 | -6/Factory | Build established: Hacker-Sprinter 1576 | -6/Factory | Discovered new exit (range 5) 1577 | -6/Factory | Self-destructed Last Messages --------------- 01483_ K-01 Serf collects debris. 01494_ Acquired 5 matter. 01495_ Dropped Imp. Terrain Scanner. 01496_ Acquired Transmission Jammer. 01497_ Discarded Adv. Terrain Scan Processor. 01504_ Slug penetrates Wall. 01505_ ALERT: All DSF locations entering lockdown mode. 01505_ Slug penetrates Wall. 01511_ Acquired 128 matter. 01512_ Acquired Enh. Optical Array. 01546_ Connecting with Terminal... 01547_ ALERT: Suspicious intruders detected, dispatching Cutter reinforcements to area. 01576_ EXIT=FOUND 01576_ Penetrated by Slug. 01576_ Scythe destroyed. 01576_ Knocked back. 01576_ VTOL Module destroyed. Map ----- +----------------------------------------------------+ | # # """ """ #?????##############???? | | # """ # """ """ #??????????????????????? | | # """ + """ """ #??????????????????????? | | # """ # ###############????????? | | # # """ """ # #????????? | | ########## """ """ # """"""""" #????????? | | # # """ """ = # #????????? | | # """ # # """"""""" #????????? | | # """"" # """ = + !#????????? | | # """"" + """ = # ! #????????? | | # # """ [ ###############????????? | | # """ # #??????????????????????? | | # """"" # #??????????????????????? | | # """"" ### ###########??????????????????????? | | # #?# #????????????????????????????????? | | # #?# #????????????????????????????????? | | # #?# #????????????????????????????????? | | ?####?##??# #????????????????????????????????? | | ??????????# #????????????????????????????????? | | ??????????# #?????????????????????###????????? | | ??????????# #????###########+######T #####+### | | ??????????# #????# | | ????????### ###??# | | ????????# #??# H c | | ????????# #??# cc c c | | ????????# T /#??# c@ | | ????????# "" #######c#############+######"### | | ????????# ## ## ##?? | | ????????# ## ## #??? | | ????????# ## [% """""" ## """"" #??? | | ????????########"# """""" ## """"" #??? | | ???????????????##" """""" ## """ #??? | | ????????????????## """""" #" #??? | | ?????????????????# "# """ #??? | | ?????????????????# """""" ## """ #??? | | ?????????????????# """""" ## """ #??? | | ?????????????????# ! """""" ## #??? | | ?????????????????# """""" ## #??? | | ?????????????????# ## #??? | | ?????????????????############################??? | | ???????????????????????????????????????????????? | | ???????????????????????????????????????????????? | | ???????????????????????????????????????????????? | | | | | | | | | | | | | | | +----------------------------------------------------+ Best States ------------- Heat Dissipation 37 Energy Generation 14 Energy Capacity 250 Matter Stores 300 Matter Capacity 300 Sight Range 22 Robot Scan Range 14 Terrain Scan Range 16 Terrain Scan Density 210 Evasion (%) 64 Targeting Accuracy 8 Particle Charging 20 Offensive Hacking 20 Defensive Hacking 20 Item Schematics ----------------- None Robot Schematics ------------------ None Fabricated ------------ Nothing Repaired ---------- Nothing Studied --------- None Alien Tech Used ----------------- None Achievements -------------- None Challenges ------------ None Game ------ Seed SupercompositeAutogunShell Manual? 0 Play Time 00:31:07 Cumulative 40.8 hours Start 2026.06.21 @ 06:42:52 End 2026.06.21 @ 08:17:44 Sessions 1 Manual Loads 0 Difficulty Rogue Special Mode None Game No. 99 Rogue 99 Adventurer 0 Explorer 0 Win Type - Total 3 Types 3/0/0/0/0/0/0/0/0/0 Lore% 41 Gallery% 35 Achievement% 36 Wizard Run 0 Options --------- Layout 1 ASCII 0 Keyboard 0 Movement Mouse Keybinds 0 Fullscreen 1 Font 16/SmallcapsGlow Map View 50x40 Zoom Use 0% Tactical HUD 1 Map Filters NONE Filters NONE Steam SD RUN: 397bb4ea-1c29-4453-8bdc-02d984177973